Cogmind - Beta 12 @@@ ROGUE MODE // 2023.12.29 @ 17:34:44 Player: puppuppit Result: Destroyed by S-27 Virus with Autogun Performance ------------- Evolutions (3) 1500 Regions Visited (5) 1000 Robots Destroyed (0) 0 Value Destroyed (0) 0 Prototype IDs (0) 0 Alien Tech Used (0) 0 Bonus (834) 834 TOTAL SCORE: 3334 Bonus ------- Pacifist 834 Cogmind --------- Core Integrity 0/700 Matter 265/300 Energy 100/100 System Corruption 0% Temperature Cool (0) Movement Core (50) Location -7/Factory Parts ------- > --- POWER (1) -------- (None) > --- PROPULSION (2) --- (None) > --- UTILITY (2) ------ (None) > --- WEAPON (8) ------- (None) > --- INVENTORY (5) ---- Ion Engine Peak State ------------ > --- POWER ------------ Ion Engine > --- PROPULSION ------- Compact Wheel Compact Wheel > --- UTILITY ---------- Small Storage Unit > --- WEAPON ----------- Medium Laser Small Laser > --- INVENTORY -------- Ion Engine [Rating: 6] Favorites ----------- Power Ion Engine Engine Ion Engine Propulsion Compact Wheel Wheel Compact Wheel Utility Small Storage Unit Storage Small Storage Unit Weapon Small Laser Energy Gun Small Laser Build | -11 -10 -9 -9 -8 -7 ------- Run | Jun Mat Mat Min Mat Fac Slots Evolved 6 | . . 2 . 2 2 Power . | . . . . . . Propulsion . | . . . . . . Utility . | . . . . . . Weapon 6 | . . 2 . 2 2 Parts Attached 6 | 6 . . . . . Power 1 | 1 . . . . . Engine 1 | 1 . . . . . Core . | . . . . . . Reactor . | . . . . . . Propulsion 2 | 2 . . . . . Treads . | . . . . . . Leg . | . . . . . . Wheel 2 | 2 . . . . . Hover . | . . . . . . Flight . | . . . . . . Utility 1 | 1 . . . . . Device . | . . . . . . Storage 1 | 1 . . . . . Processor . | . . . . . . Hackware . | . . . . . . Protection . | . . . . . . Artifact . | . . . . . . Weapon 2 | 2 . . . . . Energy Gun 2 | 2 . . . . . Energy Cannon . | . . . . . . Ballistic Gun . | . . . . . . Ballistic Cannon . | . . . . . . Launcher . | . . . . . . Special Weapon . | . . . . . . Impact Weapon . | . . . . . . Slashing Weapon . | . . . . . . Piercing Weapon . | . . . . . . Special Melee Weapon . | . . . . . . Unidentified Prototypes . | . . . . . . Parts Lost 6 | . 6 . . . . Power 1 | . 1 . . . . Propulsion 2 | . 2 . . . . Utility 1 | . 1 . . . . Weapon 2 | . 2 . . . . Highest Loss Streak 6 | . 6 . . . . To Critical Strikes . | . . . . . . Average Slot Usage (%) 19 | . 61 . . . . Engine 3 | . 9 . . . . Wheel 6 | . 18 . . . . Storage 4 | . 14 . . . . Energy Gun 6 | . 18 . . . . Naked Turns 188 | . 4 22 29 45 88 Heaviest Build 13 | 13 13 . . . . Greatest Support 32 | 32 32 3 3 3 3 Greatest Overweight (x) 1 | . 1 . . . . Average Overweight (x) . | . . . . . . Largest Inventory Capacity 8 | 8 8 5 5 5 5 Average Capacity 6 | 7 7 5 5 5 5 Most Carried 1 | 1 1 1 1 1 1 Average Carried . | . 1 1 1 1 1 Final Capacity 8 | 8 5 5 5 5 5 Final Carried 1 | 1 1 1 1 1 1 Class Distribution -------------------- 100% | Mutant Dominant Class ---------------- Mutant | -10/Materials Mutant | -9/Materials Mutant | -9/Mines Mutant | -8/Materials Mutant | -7/Factory Resources | -11 -10 -9 -9 -8 -7 ----------- Run | Jun Mat Mat Min Mat Fac Matter Collected 149 | 149 . . . . . Remotely . | . . . . . . Salvage Created . | . . . . . . Parts . | . . . . . . Haulers Intercepted . | . . . . . . Recyclers Shooed . | . . . . . . Parts Field Recycled . | . . . . . . Retrieved Matter . | . . . . . . Parts Self-Destructed . | . . . . . . Prevented . | . . . . . . Kills | -11 -10 -9 -9 -8 -7 ------- Run | Jun Mat Mat Min Mat Fac Combat Hostiles Destroyed . | . . . . . . Classes Destroyed . | . . . . . . Best Kill Streak . | . . . . . . Combat Bots Only . | . . . . . . Max Kills in Single Turn . | . . . . . . Gunslinging . | . . . . . . Exploded . | . . . . . . Melee . | . . . . . . Uniques/NPCs Destroyed . | . . . . . . Combat | -11 -10 -9 -9 -8 -7 -------- Run | Jun Mat Mat Min Mat Fac Damage Taken 1478 | . 641 86 42 . 709 Core 1043 | . 206 86 42 . 709 Absorbed by Shields . | . . . . . . Core Remaining (%) 71 | 100 17 . 68 100 . Volleys Fired . | . . . . . . Largest . | . . . . . . Hottest . | . . . . . . Shots Fired . | . . . . . . Gun . | . . . . . . Cannon . | . . . . . . Launcher . | . . . . . . Special . | . . . . . . Kinetic . | . . . . . . Thermal . | . . . . . . Explosive . | . . . . . . Electromagnetic . | . . . . . . Robot Hit Streak . | . . . . . . Robot Miss Streak . | . . . . . . Penetration Max . | . . . . . . Secondary Targets . | . . . . . . Shots Hit Robots . | . . . . . . Core Hits 1 | . 1 . . . . Critical Kills . | . . . . . . Critical Parts Destroyed . | . . . . . . Critical Strikes . | . . . . . . Melee Attacks . | . . . . . . Impact . | . . . . . . Slashing . | . . . . . . Piercing . | . . . . . . Sneak Attacks . | . . . . . . Combat Hostiles . | . . . . . . Follow-up Attacks . | . . . . . . Damage Inflicted 46 | . 31 . . . 15 Guns . | . . . . . . Cannons . | . . . . . . Explosions . | . . . . . . Melee . | . . . . . . Ramming 46 | . 31 . . . 15 Kinetic . | . . . . . . Thermal . | . . . . . . Explosive . | . . . . . . Electromagnetic . | . . . . . . Impact . | . . . . . . Slashing . | . . . . . . Piercing . | . . . . . . Highest Corruption 2 | . 2 . . . . Average Corruption 2 | . 2 . . . . Corruption Purged . | . . . . . . Corruption Blocked . | . . . . . . Overload Shots . | . . . . . . Overflow Damage . | . . . . . . Projectiles . | . . . . . . Explosions . | . . . . . . Melee . | . . . . . . Knockbacks . | . . . . . . Impact . | . . . . . . Kinetic . | . . . . . . Secondary . | . . . . . . Self-Inflicted Damage 21 | . 14 . . . 7 Shots . | . . . . . . Rammed 16 | . 14 . . . 2 Targets Rammed 16 | . 14 . . . 2 Kicked . | . . . . . . Crushed . | . . . . . . Highest Temperature . | . . . . . . Average Temperature . | . . . . . . Received Heat Transfer 294 | . 204 . . . 90 Siege Activations . | . . . . . . Robots Corrupted . | . . . . . . Combat Hostiles . | . . . . . . Parts Fried . | . . . . . . Impact Corruptions . | . . . . . . Robots Melted . | . . . . . . Combat Hostiles . | . . . . . . Parts Melted . | . . . . . . Heat Transferred . | . . . . . . Parts Sabotaged . | . . . . . . Parts Stolen . | . . . . . . Parts Stripped . | . . . . . . Power Chain Reactions . | . . . . . . Missiles Intercepted . | . . . . . . Alert | -11 -10 -9 -9 -8 -7 ------- Run | Jun Mat Mat Min Mat Fac Peak Influence 126 | . 15 1 . 15 126 Initial 6 | . . 1 . . 6 Average 9 | . 7 1 . 4 25 Maximum Alert Level . | . . . . . . Low Security (%) 100 | 100 100 100 100 100 100 Level 1 . | . . . . . . Level 2 . | . . . . . . Level 3 . | . . . . . . Level 4 . | . . . . . . Level 5 . | . . . . . . High Security . | . . . . . . Max Security . | . . . . . . Squads Dispatched 3 | . 3 . . . . Investigation 2 | . 2 . . . . Extermination . | . . . . . . Reinforcement 1 | . 1 . . . . Assault . | . . . . . . Garrison . | . . . . . . Intercept . | . . . . . . Searches Triggered . | . . . . . . Construction Impeded . | . . . . . . Haulers Reinforced . | . . . . . . Active Scanning Responses . | . . . . . . Cargo Convoy Interrupts . | . . . . . . Stealth | -11 -10 -9 -9 -8 -7 --------- Run | Jun Mat Mat Min Mat Fac Distress Signals 3 | . . . . 2 1 Communications Jammed . | . . . . . . Distress Signals . | . . . . . . Times Spotted 42 | . 15 3 4 3 17 Peak Tracking Total 12 | . 12 3 4 6 12 Tactical Retreats 2 | . . . . . 2 Traps | -11 -10 -9 -9 -8 -7 ------- Run | Jun Mat Mat Min Mat Fac Traps Triggered 2 | . 1 . . . 1 Indirectly . | . . . . . . Trap Hack Attempts . | . . . . . . Triggered . | . . . . . . Disarmed . | . . . . . . Reprogrammed . | . . . . . . Reused . | . . . . . . Traps Extracted . | . . . . . . Installed . | . . . . . . Triggered . | . . . . . . Machines | -11 -10 -9 -9 -8 -7 ---------- Run | Jun Mat Mat Min Mat Fac Machines Disabled . | . . . . . . Max in Single Turn . | . . . . . . Machines Repaired . | . . . . . . Machines Sabotaged . | . . . . . . Overloaded Fab Kills . | . . . . . . Hacking | -11 -10 -9 -9 -8 -7 --------- Run | Jun Mat Mat Min Mat Fac Machines Accessed 1 | . 1 . . . . Terminals 1 | . 1 . . . . Fabricators . | . . . . . . Repair Stations . | . . . . . . Recycling Units . | . . . . . . Scanalyzers . | . . . . . . Garrison Access . | . . . . . . Total Hacks 3 | . 3 . . . . Successful . | . . . . . . Failed 3 | . 3 . . . . Catastrophic . | . . . . . . Database Lockouts . | . . . . . . Manual . | . . . . . . Terminals 3 | . 3 . . . . Fabricators . | . . . . . . Repair Stations . | . . . . . . Recycling Units . | . . . . . . Scanalyzers . | . . . . . . Garrison Access . | . . . . . . Terminal Hacks . | . . . . . . Fabricator Hacks . | . . . . . . Repair Station Hacks . | . . . . . . Recycling Unit Hacks . | . . . . . . Scanalyzer . | . . . . . . Garrison Access Hacks . | . . . . . . Unauthorized Hacks . | . . . . . . Terminals . | . . . . . . Fabricators . | . . . . . . Repair Stations . | . . . . . . Recycling Units . | . . . . . . Scanalyzers . | . . . . . . Garrison Access . | . . . . . . Data Cores Recovered . | . . . . . . Used . | . . . . . . Hacking Detections 1 | . 1 . . . . Full Trace Events 1 | . 1 . . . . Feedback Events . | . . . . . . Feedback Blocked . | . . . . . . Robot Schematics Acquired . | . . . . . . Robots Built . | . . . . . . Authchips . | . . . . . . Time . | . . . . . . Total Robot Build Rating . | . . . . . . Part Schematics Acquired . | . . . . . . Parts Built . | . . . . . . Authchips . | . . . . . . Time . | . . . . . . Total Part Build Rating . | . . . . . . Parts Repaired . | . . . . . . Time . | . . . . . . Parts Recycled . | . . . . . . Recycled Matter . | . . . . . . Retrieved Matter . | . . . . . . Retrieved Components . | . . . . . . Parts Scanalyzed . | . . . . . . Part Schematics Acquired . | . . . . . . Parts Damaged . | . . . . . . Bothacking | -11 -10 -9 -9 -8 -7 ------------ Run | Jun Mat Mat Min Mat Fac Used RIF Installer . | . . . . . . Robots Hacked . | . . . . . . Non-combat . | . . . . . . Combat . | . . . . . . Robot Hacks Applied . | . . . . . . Relay Couplers Released . | . . . . . . Fabnet Peak Effective % . | . . . . . . Robots Rewired . | . . . . . . Allies Hacked . | . . . . . . Hacks Repelled . | . . . . . . Allies | -11 -10 -9 -9 -8 -7 -------- Run | Jun Mat Mat Min Mat Fac Total Allies . | . . . . . . Largest Group . | . . . . . . Highest-Rated Group . | . . . . . . Highest-Rated Ally . | . . . . . . Total Orders . | . . . . . . Ally Attacks . | . . . . . . Total Damage . | . . . . . . Kills . | . . . . . . Allies Corrupted . | . . . . . . Allies Melted . | . . . . . . Intel | -11 -10 -9 -9 -8 -7 ------- Run | Jun Mat Mat Min Mat Fac Robot Analysis Total . | . . . . . . Derelict Logs Recovered 1 | . . . 1 . . Drone Launches . | . . . . . . Drone Recoveries . | . . . . . . Exploration | -11 -10 -9 -9 -8 -7 ------------- Run | Jun Mat Mat Min Mat Fac Turns Passed 320 | 48 88 22 29 45 88 Spaces Moved 448 | 39 78 43 57 90 141 Core 347 | 1 15 43 57 90 141 Treads . | . . . . . . Legs . | . . . . . . Wheels 101 | 38 63 . . . . Hover . | . . . . . . Flight . | . . . . . . Fastest Speed 50 | 50 50 50 50 50 50 Average Speed 62 | 98 94 50 50 50 50 Slowest Speed 100 | 100 100 50 50 50 50 Overloaded Moves . | . . . . . . Propulsion Burnouts . | . . . . . . Robots Hopped . | . . . . . . Cave-ins Triggered . | . . . . . . Exploration Rate (%) 13 | 3 28 7 23 12 7 Regions Visited 5 Branch Regions 1 Pre-discovered Areas . | . . . . . . Known Exits Taken . | . . . . . . Unknown Exits Taken 5 | 1 1 1 1 1 . Scrap Searched . | . . . . . . Spaces Dug . | . . . . . . Terrain Destroyed . | . . . . . . Melee . | . . . . . . Projectile . | . . . . . . AOE . | . . . . . . Terrain Rammed . | . . . . . . Walls Destroyed . | . . . . . . Machines Disabled . | . . . . . . Actions | -11 -10 -9 -9 -8 -7 --------- Run | Jun Mat Mat Min Mat Fac Total 481 | 45 91 42 56 89 158 Wait . | . . . . . . Move 443 | 38 77 42 56 89 141 Hop . | . . . . . . Pick Up 1 | 1 . . . . . Fast Attach 6 | 6 . . . . . Attach . | . . . . . . Detach . | . . . . . . Swap . | . . . . . . Drop . | . . . . . . Fire . | . . . . . . Melee . | . . . . . . Ram 16 | . 14 . . . 2 Kick . | . . . . . . Crush . | . . . . . . Escape Stasis . | . . . . . . Rewire 15 | . . . . . 15 Trap . | . . . . . . Miscellaneous . | . . . . . . Route ------- -11/Junkyard -10/Materials -9/Materials -9/Mines -8/Materials -7/Factory History --------- Turn | Location | Event 12 | -11/Junkyard | Discovered new exit (range 15) 49 | -11/Junkyard | Entered Materials 120 | -10/Materials | Core integrity fell below 50% 122 | -10/Materials | Discovered new exit (range 16) 137 | -10/Materials | Entered another Materials area 137 | -9/Materials | Evolved 2 slots: Weapon x2 151 | -9/Materials | Discovered new exit (range 15) 159 | -9/Materials | Entered Mines 164 | -9/Mines | Lost 6 parts (1p2n1u2w) 166 | -9/Mines | Learned Materials interactive machine intel 180 | -9/Mines | Discovered new exit (range 16) 188 | -9/Mines | Entered Materials 188 | -8/Materials | Evolved 2 slots: Weapon x2 189 | -8/Materials | Loaded intel: 19 interactive machine locations 226 | -8/Materials | Discovered new exit (range 16) 233 | -8/Materials | Entered Factory 233 | -7/Factory | Evolved 2 slots: Weapon x2 275 | -7/Factory | Core integrity fell below 50% 284 | -7/Factory | Core integrity fell below 20% 316 | -7/Factory | Build established: Mutant 321 | -7/Factory | Destroyed by S-27 Virus with Autogun Last Messages --------------- 00269_ P-60 Hacker cannot be rewired. 00269_ K-01 Serf collects debris. 00271_ Attempting to rewire P-60 Hacker. 00271_ P-60 Hacker cannot be rewired. 00272_ Attempting to rewire P-60 Hacker. 00272_ P-60 Hacker cannot be rewired. 00273_ Attempting to rewire P-60 Hacker. 00273_ P-60 Hacker cannot be rewired. 00274_ Attempting to rewire P-60 Hacker. 00274_ P-60 Hacker cannot be rewired. 00275_ K-01 Serf collects debris. 00275_ Attempting to rewire P-60 Hacker. 00275_ P-60 Hacker cannot be rewired. 00276_ Attempting to rewire P-60 Hacker. 00276_ P-60 Hacker cannot be rewired. 00277_ Attempting to rewire P-60 Hacker. 00277_ P-60 Hacker cannot be rewired. 00279_ K-01 Serf collects debris. 00296_ K-01 Serf cleans the Assembly Bed. 00320_ Slammed into S-27 Virus. Map ----- +----------------------------------------------------+ | ?????????????????????????????????????????????????? | | ?????????????????????????????????????????????????? | | ?????????????????????????????????????????????????? | | ?????????????????????????????????????????????????? | | ?????????????????????????????????????????????????? | | ?????????????????????????????????????????????????? | | ?????????????????????????????????????????????????? | | ?????????????????????????????????????????????????? | | ?????????????????????????????????????????????????? | | ?????????????????????????????????????????????????? | | ?????????????????????????????????????????????????? | | ?????????????????????????????????????????????????? | | ?????????????????????????????????????????????????? | | ?????????????????????????????????????????????????? | | ?????????????????????????????????????????????????? | | ?????????????????????????????????????????????????? | | ?????????????????????????????????????????????????? | | ?????????????????????????????????????????????????? | | ?????????????????????????????????????????????????? | | ?????????????????????????????????????????????????? | | ????????????????##########???????????????????????? | | ????????????????# #???????????????????????? | | ????????????????# """" #???????????????????????? | | ????????????????# """" #???????????"???????????? | | ????????????????# """" ###????????"""??????????? | | ????????????????# """" s@ #???????? ???????????? | | ????????????????# #s#???????? ???????????? | | ????????????????# # #######+#+#???????????? | | ????????????????# ""T"" # s #???????????? | | ????????????????# """"" ####### #???????????? | | ????????????????##########?????# #???????????? | | ???????????????????????????????# #???????????? | | ???????????????????????????????# #???????????? | | ???????????????????????????????# #???????????? | | ???????????????????????????????# #???????????? | | ???????????????????????????????# #???????????? | | ???????????????????????????????# #???????????? | | ???????????????????????????????# #???????????? | | ???????????????????????????????# /???????????? | | ???????????????????????????????# # ??????????? | | ???????????????????????????????# # ??????????? | | ???????????????????????????????# #? ?????????? | | ???????????????????????????????# #?##????????? | | ???????????????????????????????# #???????????? | | ???????????????????????????????# #???????????? | | ???????????????????????????????+ #???????????? | | ???????????????????????????????# #???????????? | | ???????????????????????????????# #???????????? | | ????????????????????????######## ########????? | | ????????????????????????# #????? | +----------------------------------------------------+ Best States ------------- Heat Dissipation 34 Energy Generation 10 Energy Capacity 250 Matter Stores 262 Matter Capacity 300 Sight Range 16 Terrain Scan Density 10 Evasion (%) 50 Item Schematics ----------------- None Robot Schematics ------------------ None Fabricated ------------ Nothing Alien Tech Used ----------------- None Achievements -------------- Executioner Challenges ------------ None Game ------ Seed PowerDefenseInterpreter Manual? 0 Play Time 00:04:57 Cumulative 26.1 hours Start 2023.12.29 @ 17:30:47 End 2023.12.29 @ 17:34:44 Sessions 1 Manual Loads 0 Difficulty Rogue Special Mode None Game No. 15 Rogue 15 Adventurer 0 Explorer 0 Win Type - Total 0 Types 0/0/0/0/0/0/0/0/0 Lore% 44 Gallery% 36 Achievement% 32 Wizard Run 0 Options --------- ASCII 0 Keyboard 1 Movement Arrows Keybinds 0 Fullscreen 1 Font 12/Proggy Map View 83x54 Tactical HUD 1 Map Filters NONE Filters NONE Steam 0 RUN: f42e65f9-f0dd-44be-9dc4-1e15387f481f